fUSD/lending_fUSD_20260421
["ID","MTS","AMOUNT","RATE_DAILY","PERIOD"]
[420948925,1776785440155,-150.0,0.00010012,2]
[420948927,1776785440165,-150.0,0.00010017,2]
[420948929,1776785440175,-150.0,0.00010018,2]
[420948932,1776785440185,-150.0,0.00010025,2]
[420948934,1776785440196,-150.0,0.00010034,2]
[420948936,1776785440206,-150.0,0.00010036,2]
[420948938,1776785440216,-150.0,0.00010042,2]
[420948940,1776785440225,-150.0,0.00010043,2]
[420948942,1776785440235,-150.0,0.00010045,2]
[420948944,1776785440246,-150.0,0.00010047,2]
[420948946,1776785440256,-150.0,0.00010061,2]
[420948948,1776785440266,-150.0,0.00010061,2]
[420948950,1776785440276,-150.0,0.00010061,2]
[420948952,1776785440286,-150.0,0.00010061,2]
[420948954,1776785440296,-500.0,0.00010063,2]
[420948956,1776785440305,-500.0,0.00010063,2]
[420948958,1776785440315,-500.0,0.00010063,2]
[420948960,1776785440324,-500.0,0.00010063,2]
[420948963,1776785440334,-632.65490177,0.00010063,2]
[420948965,1776785440344,-150.0,0.00010067,2]
[420948967,1776785440353,-332.33,0.00010067,2]
[420948969,1776785440363,-477.92,0.00010068,2]
[420948971,1776785440372,-150.0,0.00010075,2]
[420948973,1776785440382,-3137.8671622,0.00010076,2]
[420948975,1776785440394,-1209.6728378,0.00010076,2]
[420948977,1776785440404,-150.0,0.00010079,2]
[420948979,1776785440415,-500.0,0.0001008,2]
[420948981,1776785440424,-500.0,0.0001008,2]
[420948983,1776785440434,-500.0,0.0001008,2]
[420948985,1776785440443,-500.0,0.0001008,2]
[420948987,1776785440453,-500.0,0.0001008,2]
[420948989,1776785440463,-500.0,0.0001008,2]
[420948991,1776785440473,-500.0,0.0001008,2]
[420948993,1776785440483,-500.0,0.0001008,2]
[420948995,1776785440492,-500.0,0.0001008,2]
[420948997,1776785440503,-500.0,0.0001008,2]
[420948999,1776785440512,-500.0,0.0001008,2]
[420949001,1776785440522,-500.0,0.0001008,2]
[420949003,1776785440532,-500.0,0.0001008,2]
[420949005,1776785440544,-500.0,0.0001008,2]
[420949007,1776785440554,-500.0,0.0001008,2]
[420949009,1776785440563,-500.0,0.0001008,2]
[420949011,1776785440573,-500.0,0.0001008,2]
[420949013,1776785440583,-500.0,0.0001008,2]
[420949015,1776785440593,-389.39846509,0.0001008,2]
[420949017,1776785440603,-150.0,0.00010086,2]
[420949019,1776785440613,-150.0,0.00010086,2]
[420949021,1776785440622,-150.0,0.00010093,2]
[420949024,1776785440632,-150.0,0.00010097,2]
[420949026,1776785440643,-150.0,0.00010104,2]
[420949028,1776785440653,-150.0,0.00010107,2]
[420949030,1776785440662,-150.0,0.00010109,2]
[420949032,1776785440672,-150.0,0.0001011,2]
[420949034,1776785440681,-150.0,0.00010115,2]
[420949036,1776785440691,-150.0,0.00010115,2]
[420949038,1776785440701,-150.0,0.00010118,2]
[420949086,1776785441148,-150.0,0.00010133,2]
[420949092,1776785441185,-150.0,0.00010133,2]
[420949094,1776785441195,-150.0,0.00010135,2]
[420949096,1776785441205,-150.0,0.00010143,2]
[420949098,1776785441214,-150.0,0.00010152,2]
[420949100,1776785441224,-150.0,0.00010152,2]
[420949102,1776785441233,-150.0,0.0001016,2]
[420949104,1776785441242,-150.0,0.00010161,2]
[420949106,1776785441251,-1117.0,0.00010166,2]
[420949107,1776785441260,-150.0,0.00010168,2]
[420949109,1776785441270,-150.0,0.0001017,2]
[420949111,1776785441279,-150.0,0.0001017,2]
[420949113,1776785441289,-150.0,0.00010173,2]
[420949115,1776785441299,-150.0,0.00010181,2]
[420949117,1776785441308,-150.0,0.00010185,2]
[420949119,1776785441317,-150.0,0.00010185,2]
[420949121,1776785441327,-150.0,0.00010188,2]
[420949123,1776785441336,-150.0,0.0001019,2]
[420949126,1776785441355,-150.0,0.00010194,2]
[420949129,1776785441367,-150.0,0.00010206,2]
[420949131,1776785441376,-150.0,0.00010209,2]
[420949133,1776785441386,-2351.0,0.00010217,2]
[420949135,1776785441395,-433.0,0.00010217,2]
[420949137,1776785441405,-150.0,0.00010218,2]
[420949139,1776785441414,-150.0,0.00010219,2]
[420949141,1776785441424,-150.0,0.00010224,2]
[420949143,1776785441434,-150.0,0.00010224,2]
[420949145,1776785441445,-150.0,0.00010234,2]
[420949147,1776785441455,-150.0,0.00010237,2]
[420949149,1776785441465,-150.0,0.00010242,2]
[420949151,1776785441475,-150.0,0.00010244,2]
[420949153,1776785441484,-150.0,0.00010247,2]
[420949155,1776785441494,-150.0,0.00010254,2]
[420949157,1776785441503,-150.0,0.00010259,2]
[420949159,1776785441513,-150.0,0.0001026,2]
[420949161,1776785441523,-150.0,0.0001027,2]
[420949163,1776785441533,-2000.0,0.00010274,2]
[420949165,1776785441543,-150.0,0.00010276,2]
[420949167,1776785441553,-150.0,0.00010278,2]
[420949169,1776785441562,-150.0,0.00010278,2]
[420949171,1776785441572,-150.0,0.00010283,2]
[420949173,1776785441582,-150.0,0.00010283,2]
[420949175,1776785441592,-150.0,0.00010295,2]
[420949177,1776785441602,-150.0,0.00010297,2]
[420949178,1776785441611,-150.0,0.00010301,2]
[420949179,1776785441620,-150.0,0.00010304,2]
[420949180,1776785441630,-150.0,0.00010308,2]
[420949181,1776785441640,-150.0,0.00010315,2]
[420949182,1776785441650,-150.0,0.0001032,2]
[420949183,1776785441663,-229.28207275,0.00010323,2]
[420949184,1776785441673,-150.0,0.00010327,2]
[420949185,1776785441683,-150.0,0.00010333,2]
[420949186,1776785441693,-150.0,0.00010333,2]
[420949187,1776785441703,-150.0,0.00010333,2]
[420949188,1776785441713,-150.0,0.00010333,2]
[420949189,1776785441723,-150.0,0.00010333,2]
[420949190,1776785441733,-150.0,0.00010333,2]
[420949192,1776785441747,-150.0,0.00010346,2]
[420949194,1776785441758,-150.0,0.00010351,2]
[420949196,1776785441768,-578.20924308,0.00010354,2]
[420949198,1776785441778,-721.12765535,0.00010354,2]
[420949200,1776785441787,-1428.38747117,0.00010354,2]
[420949202,1776785441797,-200.0,0.00010354,2]
[420949204,1776785441808,-9552.16786547,0.00010354,2]
[420949206,1776785441818,-209.40437684,0.00010354,2]
[420949209,1776785441827,-500.0,0.00010354,2]
[420949211,1776785441837,-275.66265529,0.00010354,2]
[420949213,1776785441846,-151.0,0.00010354,2]
[420949215,1776785441857,-209.40437684,0.00010354,2]
[420949217,1776785441866,-799.54513345,0.00010354,2]
[420949219,1776785441876,-2000.0,0.00010354,2]
[420949221,1776785441886,-2000.0,0.00010354,2]
[420949223,1776785441896,-610.29963609,0.00010354,2]
[420949225,1776785441907,-1000.0,0.00010354,2]
[420949227,1776785441917,-1000.0,0.00010354,2]
[420949229,1776785441927,-1000.0,0.00010354,2]
[420949231,1776785441937,-224.41864947,0.00010354,2]
[420949234,1776785441948,-194.72792766,0.00010354,2]
[420949236,1776785441958,-174.61919141,0.00010354,2]
[420949238,1776785441968,-152.76414574,0.00010354,2]
[420949240,1776785441979,-693.3919763,0.00010354,2]
[420949242,1776785441989,-279.9045709,0.00010354,2]
[420949244,1776785441998,-209.40437684,0.00010354,2]
[420949246,1776785442009,-150.0,0.00010358,2]
[420949248,1776785442019,-150.0,0.00010361,2]
[420949250,1776785442030,-299.55952662,0.00010362,2]
[420949252,1776785442040,-150.0,0.00010365,2]
[420949254,1776785442050,-150.0,0.00010369,2]
[420949256,1776785442059,-150.0,0.00010371,2]
[420949258,1776785442069,-150.0,0.00010382,2]
[420949260,1776785442079,-150.0,0.00010382,2]
[420949262,1776785442090,-150.0,0.00010387,2]
[420949264,1776785442101,-150.0,0.00010387,2]
[420949266,1776785442110,-150.0,0.0001039,2]
[420949268,1776785442120,-150.0,0.00010396,2]
[420949271,1776785442130,-150.0,0.000104,2]
[420949273,1776785442145,-150.0,0.00010405,2]
[420949275,1776785442157,-150.0,0.00010407,2]
[420949277,1776785442167,-2697.03625234,0.00010409,2]
[420949279,1776785442178,-151.0,0.00010409,2]
[420949282,1776785442188,-500.0,0.00010409,2]
[420949284,1776785442199,-150.0,0.00010419,2]
[420949286,1776785442209,-150.0,0.00010421,2]
[420949288,1776785442219,-150.0,0.00010424,2]
[420949290,1776785442229,-150.0,0.00010429,2]
[420949292,1776785442239,-150.0,0.00010432,2]
[420949294,1776785442249,-150.0,0.00010442,2]
[420949296,1776785442260,-150.0,0.00010442,2]
[420949299,1776785442270,-150.0,0.00010447,2]
[420949301,1776785442280,-150.0,0.00010447,2]
[420949303,1776785442290,-150.0,0.00010456,2]
[420949305,1776785442300,-150.0,0.0001046,2]
[420949307,1776785442309,-151.0,0.00010464,2]
[420949309,1776785442319,-500.0,0.00010464,2]
[420949311,1776785442329,-150.0,0.00010472,2]
[420949313,1776785442339,-150.0,0.00010474,2]
[420949316,1776785442349,-150.0,0.00010476,2]
[420949318,1776785442359,-150.0,0.00010478,2]
[420949321,1776785442369,-150.0,0.00010481,2]
[420949323,1776785442380,-150.0,0.00010481,2]
[420949326,1776785442390,-150.0,0.00010493,2]
[420949328,1776785442400,-150.0,0.00010496,2]
[420949331,1776785442411,-150.0,0.00010496,2]
[420949333,1776785442421,-150.0,0.00010497,2]
[420949335,1776785442431,-150.0,0.00010505,2]
[420949337,1776785442441,-150.0,0.00010506,2]
[420949339,1776785442452,-150.0,0.00010514,2]
[420949341,1776785442462,-150.0,0.00010514,2]
[420949343,1776785442473,-400.0,0.00010516,2]
[420949346,1776785442483,-400.0,0.00010516,2]
[420949348,1776785442493,-400.0,0.00010516,2]
[420949350,1776785442503,-400.0,0.00010516,2]
[420949352,1776785442513,-400.0,0.00010516,2]
[420949354,1776785442526,-400.0,0.00010516,2]
[420949356,1776785442536,-400.0,0.00010516,2]
[420949358,1776785442547,-400.0,0.00010516,2]
[420949360,1776785442557,-376.0,0.00010516,2]
[420949363,1776785442567,-151.0,0.00010519,2]
[420949365,1776785442578,-500.0,0.00010519,2]
[420949367,1776785442589,-150.0,0.00010523,2]
[420949369,1776785442599,-278.0,0.00010524,2]
[420949371,1776785442609,-150.0,0.00010524,2]
[420949373,1776785442619,-209.0,0.00010524,2]
[420949376,1776785442628,-150.0,0.00010531,2]
[420949379,1776785442638,-150.0,0.00010532,2]
[420949382,1776785442648,-150.0,0.00010533,2]
[420949386,1776785442659,-150.0,0.00010547,2]
[420949389,1776785442669,-150.0,0.00010548,2]
[420949392,1776785442679,-200.0,0.00010548,2]
[420949394,1776785442690,-1438.09495884,0.00010548,2]
[420949396,1776785442700,-150.0,0.0001055,2]
[420949398,1776785442710,-150.0,0.0001055,2]
[420949400,1776785442721,-150.0,0.00010555,2]
[420949403,1776785442731,-150.0,0.00010557,2]
[420949405,1776785442741,-1150.0,0.0001056,2]
[420949407,1776785442751,-1150.0,0.0001056,2]
[420949409,1776785442761,-1150.0,0.0001056,2]
[420949411,1776785442770,-1150.0,0.0001056,2]
[420949413,1776785442780,-1150.0,0.0001056,2]
[420949415,1776785442790,-1150.0,0.0001056,2]
[420949417,1776785442800,-1150.0,0.0001056,2]
[420949419,1776785442810,-1150.0,0.0001056,2]
[420949421,1776785442820,-1150.0,0.0001056,2]
[420949423,1776785442830,-1141.0,0.0001056,2]
[420949425,1776785442840,-150.0,0.00010562,2]
[420949427,1776785442851,-300.0,0.00010567,2]
[420949429,1776785442861,-300.0,0.00010567,2]
[420949432,1776785442871,-300.0,0.00010567,2]
[420949434,1776785442881,-300.0,0.00010567,2]
[420949436,1776785442891,-300.0,0.00010567,2]
[420949438,1776785442900,-300.0,0.00010567,2]
[420949440,1776785442910,-300.0,0.00010567,2]
[420949442,1776785442920,-300.0,0.00010567,2]
[420949444,1776785442929,-228.0,0.00010567,2]
[420949446,1776785442939,-150.0,0.00010569,2]
[420949448,1776785442949,-150.0,0.00010573,2]
[420949450,1776785442959,-151.0,0.00010574,2]
[420949452,1776785442969,-150.0,0.0001058,2]
[420949454,1776785442979,-150.0,0.0001058,2]
[420949456,1776785442989,-150.0,0.00010587,2]
[420949458,1776785442999,-1224.48,0.00010588,2]
[420949460,1776785443009,-150.0,0.0001059,2]
[420949462,1776785443019,-150.0,0.00010598,2]
[420949465,1776785443029,-2900.0,0.000106,3]
[420949467,1776785443038,-1906.60289877,0.00010603,2]
[420949469,1776785443048,-150.0,0.00010605,2]
[420949471,1776785443058,-150.0,0.00010605,2]
[420949473,1776785443067,-150.0,0.00010605,2]
[420949475,1776785443078,-150.0,0.00010605,2]
[420949477,1776785443088,-150.0,0.00010619,2]
[420949479,1776785443097,-150.0,0.0001062,2]
[420949481,1776785443108,-150.0,0.00010621,2]
[420949483,1776785443118,-150.0,0.00010623,2]
[420949485,1776785443128,-150.0,0.00010624,2]
[420949487,1776785443138,-151.0,0.00010629,2]
[420949489,1776785443148,-150.0,0.0001063,2]
[420949491,1776785443158,-150.0,0.00010641,2]
[420949493,1776785443169,-150.0,0.00010648,2]
[420949495,1776785443179,-150.0,0.00010649,2]
[420949498,1776785443190,-150.0,0.00010654,2]
[420949500,1776785443200,-1906.60289877,0.00010658,2]
[420949502,1776785443209,-150.0,0.00010659,2]
[420949504,1776785443219,-150.0,0.00010659,2]
[420949506,1776785443229,-150.0,0.00010674,2]
[420949508,1776785443239,-150.0,0.00010676,2]
[420949510,1776785443249,-150.0,0.00010677,2]
[420949512,1776785443259,-150.0,0.00010679,2]
[420949514,1776785443268,-150.0,0.00010679,2]
[420949516,1776785443278,-358.58613783,0.00010682,2]
[420949518,1776785443288,-8622.66589096,0.00010682,2]
[420949520,1776785443298,-151.0,0.00010684,2]
[420949522,1776785443308,-150.0,0.00010685,2]
[420949524,1776785443319,-1906.60289877,0.00010685,2]
[420949526,1776785443329,-151.12852573,0.00010685,2]
[420949528,1776785443339,-150.0,0.00010693,2]
[420949530,1776785443349,-150.0,0.00010695,2]
[420949532,1776785443359,-150.0,0.000107,2]
[420949534,1776785443369,-3900.0,0.000107,3]
[420949537,1776785443379,-1117.0,0.00010701,2]
[420949539,1776785443389,-150.0,0.00010704,2]
[420949541,1776785443399,-150.0,0.00010705,2]
[420949543,1776785443408,-150.0,0.00010714,2]
[420949545,1776785443418,-150.0,0.00010714,2]
[420949547,1776785443428,-150.0,0.00010725,2]
[420949549,1776785443438,-150.0,0.00010728,2]
[420949551,1776785443447,-150.0,0.00010732,2]
[420949553,1776785443457,-150.0,0.00010734,2]
[420949555,1776785443467,-151.0,0.00010739,2]
[420949557,1776785443477,-1906.60289877,0.0001074,2]
[420949559,1776785443487,-150.0,0.00010749,2]
[420949561,1776785443497,-150.0,0.0001075,2]
[420949563,1776785443507,-150.0,0.0001075,2]
[420949565,1776785443517,-150.0,0.00010753,2]
[420949567,1776785443527,-150.0,0.00010762,2]
[420949569,1776785443537,-150.0,0.00010767,2]
[420949571,1776785443547,-1906.60289877,0.00010767,2]
[420949573,1776785443557,-150.0,0.00010768,2]
[420949576,1776785443568,-150.0,0.00010768,2]
[420949578,1776785443578,-150.0,0.00010776,2]
[420949580,1776785443588,-150.0,0.00010778,2]
[420949582,1776785443598,-150.0,0.00010778,2]
[420949584,1776785443607,-150.0,0.00010786,2]
[420949586,1776785443617,-2000.0,0.0001079,2]
[420949588,1776785443626,-2000.0,0.0001079,2]
[420949590,1776785443636,-150.0,0.00010791,2]
[420949592,1776785443646,-151.0,0.00010794,2]
[420949594,1776785443657,-654.0,0.000108,5]
[420949596,1776785443667,-340.15070647,0.000108,2]
[420949599,1776785443677,-612.0,0.000108,5]
[420949601,1776785443686,-4900.0,0.000108,3]
[420949603,1776785443695,-150.0,0.00010801,2]
[420949605,1776785443706,-150.0,0.00010803,2]
[420949607,1776785443720,-150.0,0.00010804,2]
[420949609,1776785443730,-2000.0,0.0001081,2]
[420949611,1776785443740,-2064.2601,0.00010812,2]
[420949613,1776785443749,-150.0,0.00010813,2]
[420949615,1776785443758,-150.0,0.00010819,2]
[420949617,1776785443768,-1906.60289877,0.00010822,2]
[420949619,1776785443778,-150.0,0.00010822,2]
[420949621,1776785443788,-150.0,0.00010822,2]
[420949623,1776785443798,-150.0,0.00010826,2]
[420949626,1776785443808,-150.0,0.00010827,2]
[420949628,1776785443817,-150.0,0.0001084,2]
[420949630,1776785443827,-2000.0,0.0001084,2]
[420949632,1776785443837,-150.0,0.0001084,2]
[420949634,1776785443847,-150.0,0.00010848,2]
[420949636,1776785443857,-151.0,0.00010849,2]
[420949638,1776785443867,-200.0,0.00010849,2]
[420949640,1776785443877,-250.0,0.00010849,2]
[420949642,1776785443887,-250.0,0.00010849,2]
[420949644,1776785443897,-250.0,0.00010849,2]
[420949646,1776785443907,-250.0,0.00010849,2]
[420949648,1776785443917,-250.0,0.00010849,2]
[420949650,1776785443927,-250.0,0.00010849,2]
[420949652,1776785443937,-1906.60289877,0.00010849,2]
[420949654,1776785443948,-150.0,0.00010851,2]
[420949656,1776785443958,-150.0,0.00010852,2]
[420949658,1776785443969,-150.0,0.00010859,2]
[420949660,1776785443979,-788.93728649,0.00010868,2]
[420949662,1776785443989,-150.0,0.00010877,2]
[420949664,1776785444004,-150.0,0.00010877,2]
[420949667,1776785444017,-150.0,0.00010877,2]
[420949669,1776785444028,-150.0,0.00010877,2]
[420949671,1776785444041,-150.0,0.00010877,2]
[420949673,1776785444055,-150.0,0.00010877,2]
[420949675,1776785444065,-150.0,0.00010877,2]
[420949677,1776785444075,-150.0,0.00010877,2]
[420949679,1776785444085,-150.0,0.00010877,2]
[420949681,1776785444095,-150.0,0.00010877,2]
[420949683,1776785444104,-55218.4164396,0.00010878,2]
[420949685,1776785444114,-3300.4631673,0.00010878,2]
[420949687,1776785444124,-164.2320158,0.00010878,2]
[420949689,1776785444134,-152.0,0.00010898,7]
[420949691,1776785444143,-521393.73697533,0.000109,2]
[420949693,1776785444154,-1000.0,0.000109,2]
[420949695,1776785444164,-1000.0,0.000109,2]
[420949697,1776785444174,-340.08027528,0.000109,2]
[420949699,1776785444184,-150.0,0.000109,2]
[420949701,1776785444194,-13745.27262067,0.000109,2]
[420949703,1776785444204,-150.0,0.000109,2]
[420949705,1776785444214,-112627.35845747,0.000109,2]
[420949708,1776785444224,-150.0,0.000109,2]
[420949710,1776785444234,-4016.84146927,0.000109,2]
[420949712,1776785444243,-1000.0,0.000109,2]
[420949714,1776785444253,-1000.0,0.000109,2]
[420949716,1776785444262,-400.0,0.000109,2]
[420949718,1776785444271,-10000.0,0.000109,2]
[420949720,1776785444281,-151.0,0.000109,2]
[420949722,1776785444290,-411.57348805,0.000109,2]
[420949724,1776785444301,-500.0,0.000109,2]
[420949726,1776785444310,-2000.0,0.000109,2]
[420949728,1776785444320,-2000.0,0.000109,2]
[420949730,1776785444330,-900.0,0.000109,3]
[420949732,1776785444341,-10984.26664832,0.000109,2]
[420949734,1776785444350,-10984.2666483,0.000109,2]
[420949736,1776785444360,-10984.2666483,0.000109,2]
[420949738,1776785444369,-10984.2666483,0.000109,2]
[420949740,1776785444379,-10984.2666483,0.000109,2]
[420949742,1776785444389,-14708.49288741,0.000109,2]
[420949744,1776785444399,-4384.67929438,0.000109,2]
[420949746,1776785444408,-454.4851615,0.000109,2]
[420949748,1776785444419,-1646.09337008,0.000109,2]
[420949750,1776785444430,-151.0,0.000109,3]
[420949752,1776785444439,-155.0,0.000109,3]
[420949754,1776785444448,-200.0,0.00010902,2]
[420949757,1776785444458,-1481.23780761,0.00010902,2]
[420949759,1776785444468,-166.92730576,0.00010902,2]
[420949761,1776785444478,-152.25085658,0.00010902,2]
[420949763,1776785444487,-181.08010149,0.00010902,2]
[420949765,1776785444496,-611.21771217,0.00010902,2]
[420949767,1776785444506,-1906.60289877,0.00010904,2]
[420949769,1776785444516,-250.0,0.00010904,2]
[420949771,1776785444526,-152.0,0.00010909,7]
[420949773,1776785444536,-1267.821,0.00010912,2]
[420949775,1776785444546,-927.0,0.00010912,2]
[420949777,1776785444556,-1219.0,0.00010912,2]
[420949779,1776785444566,-3530.0,0.00010912,2]
[420949781,1776785444577,-2474.0,0.00010912,2]
[420949783,1776785444587,-150.0,0.00010913,2]
[420949785,1776785444597,-250.0,0.00010915,2]
[420949787,1776785444609,-152.0,0.00010921,7]
[420949789,1776785444619,-152.0,0.00010932,7]
[420949791,1776785444629,-250.0,0.00010945,2]
[420949793,1776785444639,-200.0,0.00010959,2]
[420949795,1776785444649,-200.0,0.00010959,2]
[420949797,1776785444660,-200.0,0.00010959,2]
[420949799,1776785444669,-200.0,0.00010959,2]
[420949801,1776785444680,-500.0,0.00010959,2]
[420949803,1776785444689,-150.0,0.00010959,2]
[420949805,1776785444699,-1054.07,0.00010959,2]
[420949807,1776785444709,-150.0,0.00010959,2]
[420949809,1776785444719,-1906.60289877,0.00010959,2]
[420949812,1776785444729,-3240.0,0.00010959,2]
[420949814,1776785444738,-4217.0,0.00010959,2]
[420949816,1776785444748,-226.0,0.00010985,2]
[420949818,1776785444757,-204.027,0.00010985,2]
[420949820,1776785444767,-192.236,0.00010985,2]
[420949822,1776785444778,-150.406,0.00010985,2]
[420949824,1776785444787,-150.0,0.00010985,2]
[420949826,1776785444797,-163.791,0.00010985,2]
[420949828,1776785444808,-166.409,0.00010985,2]
[420949830,1776785444817,-150.0,0.00010985,2]
[420949832,1776785444827,-150.0,0.00010985,2]
[420949834,1776785444836,-150.0,0.00010985,2]
[420949836,1776785444846,-1906.60289877,0.00010986,2]
[420949838,1776785444856,-150.0,0.00010986,2]
[420949840,1776785444865,-232.39,0.00010989,2]
[420949842,1776785444874,-2000.0,0.00010989,2]
[420949844,1776785444884,-793.96,0.00010989,2]
[420949846,1776785444894,-2000.0,0.00010989,2]
[420949848,1776785444905,-2000.0,0.00010989,2]
[420949850,1776785444916,-182.44,0.00010989,2]
[420949852,1776785444926,-788.93728649,0.0001099,2]
[420949854,1776785444936,-788.93728649,0.0001099,2]
[420949856,1776785444945,-151.0,0.00010997,2]
[420949858,1776785444954,-196.50990224,0.00010999,3]
[420949860,1776785444964,-1097.7399013,0.00010999,3]
[420949862,1776785444975,-1121.11905996,0.00010999,3]
[420949864,1776785444984,-1121.11905997,0.00010999,3]
[420949866,1776785444994,-300.0,0.00010999,2]
[420949869,1776785445004,-300.0,0.00010999,2]
[420949871,1776785445014,-300.0,0.00010999,2]
[420949873,1776785445024,-300.0,0.00010999,2]
[420949875,1776785445034,-594.0,0.00011,5]
[420949877,1776785445043,-153805.83927228,0.00011,2]
[420949887,1776785445187,986.91311166,0.00016182,120]
[420950076,1776785446998,986.91311166,0.00015284,120]
[420950094,1776785447148,986.91311166,0.00014677,120]
[420950102,1776785447214,986.91311166,0.00013751,120]
[420950104,1776785447226,-322.94797957,0.00011,2]
[420950107,1776785447246,-1784.57115365,0.00011,2]
[420950110,1776785447263,-298.00300145,0.00011,2]
[420950112,1776785447274,-97863.60477498,0.00011,2]
[420950114,1776785447284,-218210.69511032,0.00011,2]
[420950123,1776785447365,986.91311166,0.00012863,120]
[420950136,1776785447475,986.91311166,0.00011957,120]
[420950143,1776785447537,986.91311166,0.00011225,120]
[420950207,1776785448141,986.91311166,0.00010575,120]
[420950217,1776785448229,986.91311166,9.503e-05,120]
[420950220,1776785448248,-6031.0,0.00010912,2]
[420950222,1776785448258,-396.53,0.00011,2]
[420950226,1776785448280,-6079.94658195,0.00011,2]
[420950231,1776785448322,986.91311166,8.781e-05,120]
[420950239,1776785448386,986.91311166,8.219e-05,120]
[420950307,1776785525555,151.0,8.219e-05,3]
[420950308,1776785587484,151.0,8.219e-05,3]
[420950309,1776785646959,151.0,8.219e-05,3]
[420950310,1776785706043,151.0,8.219e-05,3]
[420950311,1776785765851,151.0,8.219e-05,3]
[420950312,1776785796425,-500.0,8.257e-05,2]
[420950313,1776785796452,-500.0,8.257e-05,2]
[420950314,1776785796482,-257.0,8.257e-05,2]
[420950315,1776785796511,-206.61,8.262e-05,2]
[420950316,1776785796540,-258.26,8.283e-05,2]
[420950317,1776785796568,-213.12,8.303e-05,2]
[420950318,1776785796596,-619.85,8.303e-05,2]
[420950319,1776785796624,-300.0,8.343e-05,2]
[420950320,1776785796650,-1200.0,8.344e-05,2]
[420950321,1776785798478,-1200.0,8.344e-05,2]
[420950322,1776785798565,-300.0,8.344e-05,2]
[420950323,1776785798589,-150.0,8.344e-05,2]
[420950324,1776785798615,-4295.16,8.345e-05,2]
[420950325,1776785799845,-10000.0,8.345e-05,2]
[420950326,1776785800907,-10000.0,8.345e-05,2]
[420950327,1776785803298,-10000.0,8.345e-05,2]
[420950328,1776785804371,-10000.0,8.345e-05,2]
[420950329,1776785805353,-10000.0,8.345e-05,2]
[420950330,1776785806386,-10000.0,8.345e-05,2]
[420950331,1776785807383,-10000.0,8.345e-05,2]
[420950332,1776785809374,-10000.0,8.345e-05,2]
[420950333,1776785812166,-10000.0,8.345e-05,2]
[420950334,1776785815035,-10000.0,8.345e-05,2]
[420950335,1776785816042,-10000.0,8.345e-05,2]
[420950336,1776785817046,-10000.0,8.345e-05,2]
[420950337,1776785818050,-10000.0,8.345e-05,2]
[420950338,1776785818984,-10000.0,8.345e-05,2]
[420950339,1776785827730,-3355.0,8.345e-05,2]
[420950360,1776786385480,150.0,8.094e-05,2]
[420950365,1776786631871,-300.0,8.344e-05,2]
[420950366,1776786631881,-300.0,8.344e-05,2]
[420950367,1776786631891,-1200.0,8.344e-05,2]
[420950368,1776786631901,-250.0,8.344e-05,2]
[420950369,1776786631910,-8638.3403111,8.345e-05,2]
[420950370,1776786631922,-13233.87224393,8.345e-05,2]